[Event "URU-ch Semi Final 2020"]
[Site "Montevideo"]
[Date "2020.02.24"]
[Round "6.5"]
[White "Vazquez, Facundo"]
[Black "Suarez, Pedro"]
[Result "1/2-1/2"]
[ECO "E12"]
[WhiteElo "2155"]
[BlackElo "2063"]
[Annotator "RC"]
[PlyCount "149"]
[EventDate "2020.02.22"]
[EventType "swiss"]
[EventCountry "URU"]
[SourceTitle "playchess.com"]
[Source "ChessBase"]
[SourceQuality "1"]
[TimeControl "5400+30"]

1. d4 {[%emt 0:00:00]} Nf6 {[%emt 0:00:03]} 2. c4 {[%emt 0:00:00]} e6 {[%emt 0:01:37]} 3. Nf3 {[%emt 0:00:00]} b6 {[%emt 0:00:38]} 4. a3 {[%emt 0:00:00]} Bb7 {[%emt 0:01:09]} 5. Nc3 {[%emt 0:00:00]} d6 {[%emt 0:03:05]} 6. d5 {[%emt 0:01:37]} g6 {[%emt 0:04:16]} 7. e4 {[%emt 0:03:50]} e5 {[%emt 0:09:16]} 8. Be2 {[%emt 0:03:31]} Bg7 {[%emt 0:01:29]} 9. b4 {[%emt 0:02:57]} Nbd7 {[%emt 0:01:27]} 10. Be3 {[%emt 0:13:13]} O-O {[%emt 0:07:48]} 11. Nd2 {[%emt 0:00:23]} Ne8 {[%emt 0:02:12]} 12. g4 {[%emt 0:05:06]} c5 {[%emt 0:18:07]} 13. b5 {[%emt 0:15:19]} f6 {[%emt 0:09:46]} 14. h4 {[%emt 0:01:18]} Rf7 {[%emt 0:00:50]} 15. Nf1 {[%emt 0:00:29]} Bf8 {[%emt 0:02:39]} 16. Ng3 {[%emt 0:02:31]} Be7 {[%emt 0:04:45]} 17. Qd2 {[%emt 0:01:00]} Ng7 {[%emt 0:01:39]} 18. O-O-O {[%emt 0:01:21]} Bc8 {[%emt 0:02:19]} 19. Rh2 {[%emt 0:01:19]} Nf8 {[%emt 0:05:43]} 20. f4 {[%emt 0:03:37]} exf4 {[%emt 0:01:34]} 21. Bxf4 {[%emt 0:00:02]} Nd7 {[%emt 0:00:23]} 22. Nf1 {[%emt 0:06:25]} Ne5 {[%emt 0:00:51]} 23. Ne3 {[%emt 0:00:10]} Rf8 {[%emt 0:06:25]} 24. Rdh1 {[%emt 0:08:07]} Nf7 {[%emt 0:02:25]} 25. Qe1 {[%emt 0:04:54]} h6 {[%emt 0:01:46]} 26. Qg1 {[%emt 0:04:47]} Bd7 {[%emt 0:00:58]} 27. Rg2 {[%emt 0:00:45]} g5 {[%emt 0:00:53]} 28. Bg3 {[%emt 0:00:47]} a6 {[%emt 0:01:05]} 29. a4 {[%emt 0:01:18]} axb5 {[%emt 0:00:16]} 30. cxb5 {[%emt 0:00:02]} Ra7 {[%emt 0:03:21]} 31. Nc4 {[%emt 0:01:53]} Ne5 {[%emt 0:02:49]} 32. hxg5 {[%emt 0:00:57]} hxg5 {[%emt 0:00:01]} 33. Bxe5 {[%emt 0:00:58]} fxe5 {[%emt 0:00:31]} 34. Qh2 {[%emt 0:00:08]} Rf6 {[%emt 0:00:22]} 35. Ne3 {[%emt 0:01:19]} Kf7 {[%emt 0:01:38]} 36. Nf5 {[%emt 0:00:15]} Qf8 {[%emt 0:00:41]} 37. Qh7 {[%emt 0:00:59]} Ra8 {[%emt 0:00:47]} 38. Rh5 {[%emt 0:01:14]} Qg8 {[%emt 0:00:59]} 39. Nh6+ {[%emt 0:00:49]} Rxh6 {[%emt 0:00:02]} 40. Qxh6 {[%emt 0:00:01]} Nxh5 {[%emt 0:00:19]} 41. Qxh5+ {[%emt 0:06:18]} Qg6 {[%emt 0:00:13]} 42. Qxg6+ {[%emt 0:02:24]} Kxg6 {[%emt 0:00:02]} 43. Bd1 {[%emt 0:00:10]} Rf8 {[%emt 0:00:50]} 44. Nb1 {[%emt 0:00:22]} Rf4 {[%emt 0:00:14]} 45. Nd2 {[%emt 0:00:09]} Bd8 {[%emt 0:01:23]} 46. Nc4 {[%emt 0:02:26]} Bc7 {[%emt 0:00:04]} 47. a5 {[%emt 0:03:22]} Bxb5 {[%emt 0:01:47]} 48. axb6 {[%emt 0:00:22]} Bxc4 {[%emt 0:00:22]} 49. bxc7 {[%emt 0:00:07]} Ba6 {[%emt 0:00:02]} 50. Rb2 {[%emt 0:00:23]} Bc8 {[%emt 0:00:53]} 51. Rb6 {[%emt 0:01:21]} Rf6 {[%emt 0:00:01]} 52. Ba4 {[%emt 0:00:57]} Kg7 {[%emt 0:00:55]} 53. Bb5 {[%emt 0:01:18]} Rf7 {[%emt 0:00:37]} 54. Rxd6 {[%emt 0:00:25]} Rxc7 {[%emt 0:00:01]} 55. Be2 {[%emt 0:00:34]} Kf7 {[%emt 0:00:36]} 56. Kc2 {[%emt 0:00:32]} Bd7 {[%emt 0:00:31]} 57. Kc3 {[%emt 0:00:42]} Rb7 {[%emt 0:00:49]} 58. Rh6 {[%emt 0:01:01]} Kg7 {[%emt 0:00:22]} 59. Rh5 {[%emt 0:00:27]} Kg6 {[%emt 0:00:10]} 60. Rh8 {[%emt 0:00:08]} Kg7 {[%emt 0:00:28]} 61. Rd8 {[%emt 0:00:02]} Kf7 {[%emt 0:00:28]} 62. Bd1 {[%emt 0:01:25]} Bb5 {[%emt 0:01:17]} 63. Rc8 {[%emt 0:00:28]} c4 {[%emt 0:00:43]} 64. Be2 {[%emt 0:00:38]} Ba6 {[%emt 0:01:44]} 65. Bxc4 {[%emt 0:01:08]} Rb3+ {[%emt 0:00:03]} 66. Kxb3 {[%emt 0:00:10]} Bxc8 {[%emt 0:00:01]} 67. Be2 {[%emt 0:00:45]} Ke7 {[%emt 0:00:01]} 68. Kb4 {[%emt 0:00:56]} Kd6 {[%emt 0:00:01]} 69. Kb5 {[%emt 0:00:23]} Bd7+ {[%emt 0:00:01]} 70. Kb6 {[%emt 0:00:12]} Bc8 {[%emt 0:00:02]} 71. Bf3 {[%emt 0:00:11]} Bd7 {[%emt 0:00:33]} 72. Kb7 {[%emt 0:00:17]} Bb5 {[%emt 0:00:02]} 73. Kc8 {[%emt 0:00:39]} Bd7+ {[%emt 0:00:02]} 74. Kd8 {[%emt 0:00:10]} Bb5 {[%emt 0:00:03]} 75. Bd1 {[%emt 0:00:28]} 1/2-1/2

[Event "URU-ch Semi Final 2020"]
[Site "Montevideo"]
[Date "2020.02.24"]
[Round "6.13"]
[White "Campora, Edgardo"]
[Black "Palacio, Enzo"]
[Result "0-1"]
[ECO "B34"]
[WhiteElo "1676"]
[BlackElo "1869"]
[Annotator "NA RC"]
[PlyCount "68"]
[EventDate "2020.02.22"]
[EventType "swiss"]
[EventCountry "URU"]
[SourceTitle "playchess.com"]
[Source "ChessBase"]
[SourceQuality "1"]
[TimeControl "5400+30"]

{[%evp 14,67,12,-10,0,-1,18,6,14,2,7,0,2,0,25,-3,37,0,10,0,-4,-26,-11,-16,7,-19,-11,0,20,20,18,34,22,8,60,38,50,-111,-125,-105,-97,-103,-81,-129,-104,-91,-93,-5318,-29973,-6231,-29974,-29987,-29989,-29997,-29998,-29998]} 1. e4 c5 {[%emt 0:03:23]} 2. Nf3 {[%emt 0:00:00]} Nc6 {[%emt 0:00:26]} 3. d4 {[%emt 0:00:00]} cxd4 {[%emt 0:00:02]} 4. Nxd4 {[%emt 0:00:00]} g6 {[%emt 0:00:03]} 5. Nc3 {[%emt 0:01:10]} Bg7 {[%emt 0:00:05]} 6. Be3 {[%emt 0:00:12]} Nf6 {[%emt 0:00:02]} 7. Be2 {[%emt 0:05:51]} O-O {[%emt 0:03:18]} 8. O-O {[%emt 0:07:56]} d5 {[%emt 0:00:36]} 9. exd5 {[%emt 0:06:22]} Nxd5 {[%emt 0:00:03]} 10. Nxd5 {[%emt 0:00:13]} Qxd5 {[%emt 0:00:03] 10...Nxd4 is not played anymore.} 11. Bf3 {[%emt 0:01:09]} Qc4 {[%emt 0:08:35]} 12. Nxc6 {[%emt 0:02:35] B34: Sicilian: Accelerated Dragon with 5 Nc3: sidelines.} bxc6 {[%emt 0:00:04]} 13. b3 {[%emt 0:09:34]} Qc3 {[%emt 0:04:15]} 14. Rc1 {[%emt 0:10:35]} Bf5 {[%emt 0:18:53] [#]} 15. Bd2 $146 {[%emt 0:03:27]} ({Predecessor:} 15. Qe2 Rfd8 16. Rfd1 e5 17. g3 h5 18. g4 hxg4 19. Bxg4 Rxd1+ 20. Qxd1 Be4 21. Bf3 Bxf3 22. Qxf3 {½-½ (29) Didi,J (2065)-Dungl,M (2016) Czechia 2012}) 15... Qb2 {[%emt 0:04:45]} 16. g4 {[%emt 0:25:15]} Be6 {[%emt 0:04:41]} 17. Bb4 {[%emt 0:06:10]} Qf6 {[%emt 0:08:49]} 18. c4 {[%emt 0:09:40]} Qh4 {[%emt 0:07:26]} (18... Rfd8 $5 19. Qe2 $8 Rac8 $14) 19. Kg2 {[%emt 0:00:56]} Rad8 {[%emt 0:10:54]} 20. Qe2 {[%emt 0:00:17]} Rd4 {[%emt 0:01:15]} 21. h3 {[%emt 0:00:56]} h5 {[%emt 0:00:08]} 22. Rh1 {[%emt 0:00:53]} Rfd8 {[%emt 0:06:40]} 23. Rcd1 {[%emt 0:00:51]} Qg5 {[%emt 0:05:07]} 24. Rxd4 {[%emt 0:02:55]} ({But not} 24. Bxc6 hxg4 25. h4 Qf4 $17) 24... Rxd4 {[%emt 0:00:48]} 25. Rd1 {[%emt 0:00:23]} ({Much worse is} 25. Bxc6 hxg4 26. h4 Qf4 $17) (25. Qe3 $14 {keeps the upper hand.} Qxe3 26. fxe3) 25... hxg4 {[%emt 0:00:37]} 26. hxg4 {[%emt 0:01:06]} Bxg4 {[%emt 0:03:42]} 27. Rxd4 {[%emt 0:01:30]} Bxf3+ {[%emt 0:00:06]} 28. Kxf3 {[%emt 0:00:15]} Bxd4 {[%emt 0:00:06]} 29. Qxe7 {[%emt 0:03:43]} Qf5+ {[%emt 0:00:39]} 30. Kg3 $2 {[%emt 0:00:04]} (30. Ke2 $17 c5 31. Bd2) 30... Qxf2+ {[%emt 0:00:30] Double Attack} 31. Kh3 {[%emt 0:00:16]} Qf1+ {[%emt 0:01:27]} 32. Kg3 {[%emt 0:00:47]} Bf2+ {[%emt 0:00:48]} 33. Kg4 {[%emt 0:00:27]} Qg2+ {[%emt 0:00:54]} 34. Kf4 {[%emt 0:00:02]} Qg3+ {[%emt 0:00:46] Ke5} 0-1

[Event "URU-ch Semi Final 2020"]
[Site "Montevideo"]
[Date "2020.02.24"]
[Round "6.14"]
[White "Davila Texeira, Mario"]
[Black "Manteiga, Franco"]
[Result "1-0"]
[ECO "B90"]
[WhiteElo "1819"]
[BlackElo "1703"]
[Annotator "NA RC"]
[PlyCount "49"]
[EventDate "2020.02.22"]
[EventType "swiss"]
[EventCountry "URU"]
[SourceTitle "playchess.com"]
[Source "ChessBase"]
[SourceQuality "1"]
[TimeControl "5400+30"]

{[%evp 8,36,25,33,30,0,19,2,32767,0,0,-6,2,0,0,-10,-21,-21,36,36,32,10,17,40,0,38,82,77,173,172,183]} 1. e4 {[%emt 0:00:00]} c5 {[%emt 0:00:00]} 2. Nf3 {[%emt 0:00:00]} d6 {[%emt 0:00:00]} 3. d4 {[%emt 0:00:00]} cxd4 {[%emt 0:00:00]} 4. Nxd4 {[%emt 0:00:00]} Nf6 {[%emt 0:00:03]} 5. Nc3 {[%emt 0:00:00]} a6 {[%emt 0:00:28]} 6. Bc4 {[%emt 0:00:00]} e6 {[%emt 0:02:29]} 7. Bb3 {[%emt 0:00:00]} Be7 {[%emt 0:01:35]} 8. Qf3 {[%emt 0:03:31]} O-O {[%emt 0:05:30]} 9. Be3 {[%emt 0:07:23]} Nc6 {[%emt 0:09:33]} 10. Nxc6 {[%emt 0:08:55]} bxc6 {[%emt 0:00:08]} 11. g4 {[%emt 0:05:27]} d5 {[%emt 0:17:32]} 12. O-O-O {[%emt 0:01:51]} Qc7 {[%emt 0:10:39]} 13. g5 {[%emt 0:06:58]} Nd7 {[%emt 0:03:42]} 14. exd5 {[%emt 0:01:32]} cxd5 {[%emt 0:05:53]} 15. Bxd5 {[%emt 0:00:16]} Rb8 $1 {[%emt 0:05:33]} ({Much worse is} 15... Ne5 16. Qg3 $16) 16. Bf4 {[%emt 0:13:41]} e5 {[%emt 0:07:16]} 17. Bd2 {[%emt 0:02:55]} Bb4 {[%emt 0:05:33]} (17... Nb6 $14) 18. Rhe1 {[%emt 0:00:07]} Qa5 $18 {[%emt 0:02:54]} (18... Nb6 $16 {might work better.}) 19. Re3 {[%emt 0:05:13]} Bb7 {[%emt 0:09:36]} 20. Bxb7 {[%emt 0:00:57]} Rxb7 {[%emt 0:00:03]} 21. Qxb7 {[%emt 0:00:34]} Rb8 {[%emt 0:00:05]} 22. Qxd7 {[%emt 0:00:13]} Ba3 {[%emt 0:00:09]} 23. Nb5 {[%emt 0:00:36]} Bxb2+ {[%emt 0:06:38]} 24. Kxb2 {[%emt 0:00:10]} Rxb5+ {[%emt 0:00:08]} 25. Rb3 {[%emt 0:00:03]} 1-0

[Event "URU-ch Semi Final 2020"]
[Site "Montevideo"]
[Date "2020.02.24"]
[Round "6.16"]
[White "Ruggiero, Alvaro"]
[Black "Ramirez, Agustin"]
[Result "1/2-1/2"]
[ECO "C05"]
[WhiteElo "1843"]
[BlackElo "1715"]
[Annotator "NA RC"]
[PlyCount "73"]
[EventDate "2020.02.22"]
[EventType "swiss"]
[EventCountry "URU"]
[SourceTitle "playchess.com"]
[Source "ChessBase"]
[SourceQuality "1"]
[TimeControl "5400+30"]

{[%evp 14,67,16,-159,32767,-140,-147,-171,-167,-162,-153,-307,-211,-202,-237,-221,-216,-384,32767,-137,-71,-176,32767,-108,-101,-92,-108,-223,-92,-92,-101,-114,32767,32767,32767,32767,-94,-105,-95,-100,-95,-96,0,9,0,0,0,0,0,6,7,0,31,19,28,46]} 1. e4 {[%emt 0:05:06]} e6 {[%emt 0:00:00]} 2. d4 {[%emt 0:00:29]} d5 {[%emt 0:00:00]} 3. Nd2 {[%emt 0:00:07]} Nf6 {[%emt 0:00:00]} 4. Bd3 {[%emt 0:00:56]} c5 {[%emt 0:00:52]} 5. c3 {[%emt 0:00:28]} Nc6 {[%emt 0:00:27]} 6. e5 {[%emt 0:00:36]} Nd7 {[%emt 0:00:14]} 7. Ngf3 {[%emt 0:00:23]} Qb6 {[%emt 0:08:37]} 8. Ng5 $2 {[%emt 0:02:35] C06: French Tarrasch: 3...Nf6 4 e5 Nfd7 5 Bd3 main lines.} (8. O-O $11) 8... Be7 {[%emt 0:05:26] [#]} 9. Ndf3 $146 {[%emt 0:02:24]} ({Predecessor:} 9. f4 cxd4 10. Ndf3 h6 11. Nh3 dxc3 12. bxc3 Nc5 13. Bc2 Bd7 14. Be3 Qa6 15. f5 O-O-O {½-½ (55) Munkhzul,D (1670)-Ter Saakian,G (1924) Voronezh 2016}) 9... h6 {[%emt 0:01:42]} 10. dxc5 {[%emt 0:02:23]} Nxc5 11. Nh3 {[%emt 0:02:53]} g5 {[%emt 0:04:18]} 12. g4 {[%emt 0:01:24]} (12. Nd4 $142) 12... Qc7 {[%emt 0:01:16]} 13. Bb5 {[%emt 0:00:24]} Bd7 {[%emt 0:03:39]} 14. Bxc6 {[%emt 0:00:09]} Bxc6 {[%emt 0:00:34]} ({Much less strong is} 14... Qxc6 15. O-O $17) 15. Be3 $2 {[%emt 0:01:54]} (15. Nd4) 15... Ne4 {[%emt 0:02:09]} 16. Nd4 {[%emt 0:01:38]} a6 {[%emt 0:09:59]} ({And not} 16... Qxe5 17. Nxc6 {[%mdl 64] Discovered Attack} bxc6 18. Bd4 $14 {[%mdl 64] Skewer}) (16... Bd7 $142 17. Nb3 Ba4) 17. f4 {[%emt 0:00:54]} (17. O-O $15) 17... Rg8 {[%emt 0:04:45]} 18. O-O {[%emt 0:02:26]} gxf4 {[%emt 0:08:12]} 19. Bxf4 {[%emt 0:00:41]} h5 {[%emt 0:00:25]} 20. Nf2 {[%emt 0:02:33]} (20. g5 $17) 20... Nxf2 {[%emt 0:01:53]} (20... Bh4 $19 {is more deadly.} 21. Nxe4 dxe4 22. Nxc6 Qxc6) 21. Rxf2 {[%emt 0:00:12]} Rxg4+ {[%emt 0:00:43]} 22. Kh1 {[%emt 0:00:07]} O-O-O {[%emt 0:01:30]} 23. h3 {[%emt 0:00:27]} Rg6 {[%emt 0:08:54]} 24. Qxh5 {[%emt 0:00:54]} Rdg8 {[%emt 0:00:25]} 25. Bh2 {[%emt 0:00:53]} Be8 {[%emt 0:04:21]} 26. Qe2 {[%emt 0:01:46]} Bh4 {[%emt 0:01:19]} 27. Rf3 {[%emt 0:01:07]} Rg2 {[%emt 0:07:31]} (27... Qe7 $17 28. Rd1 Qg5) 28. Qxg2 {[%emt 0:00:11]} Rxg2 {[%emt 0:00:05]} 29. Kxg2 {[%emt 0:00:08]} Qe7 {[%emt 0:00:46]} 30. Bg3 {[%emt 0:04:03]} Qg5 {[%emt 0:00:35]} 31. Re1 $1 {[%emt 0:00:21]} Bb5 {[%emt 0:02:19]} 32. Ree3 {[%emt 0:00:55]} Be8 {[%emt 0:01:53]} 33. Kh2 {[%emt 0:01:09]} Bxg3+ $11 {[%emt 0:01:11]} 34. Rxg3 {[%emt 0:00:12]} Qf4 35. Kg2 Qg5 36. Rg4 Qh5 37. Reg3 1/2-1/2

[Event "URU-ch Semi Final 2020"]
[Site "Montevideo"]
[Date "2020.02.24"]
[Round "6.17"]
[White "Belbey, Juan"]
[Black "De los Reyes, Mauro"]
[Result "1-0"]
[ECO "A00"]
[WhiteElo "1611"]
[BlackElo "1815"]
[Annotator "NA RC"]
[PlyCount "50"]
[EventDate "2020.02.22"]
[EventType "swiss"]
[EventCountry "URU"]
[SourceTitle "playchess.com"]
[Source "ChessBase"]
[SourceQuality "1"]
[TimeControl "5400+30"]

{[%evp 14,39,-35,-77,-30,-49,-48,-52,-15,32767,32767,32767,-6,32767,-4,-21,-20,-60,-6,0,0,0,0,-17,-15,-102,-109,-102]} 1. c3 {[%emt 0:00:14]} c5 {[%emt 0:01:50]} 2. Na3 {[%emt 0:00:57]} d5 {[%emt 0:01:40]} 3. d4 {[%emt 0:00:25]} e6 {[%emt 0:01:29]} 4. Nc2 {[%emt 0:00:20]} Nc6 {[%emt 0:00:30]} 5. Bf4 {[%emt 0:00:21]} Bd6 {[%emt 0:01:32]} 6. Bg3 {[%emt 0:00:12]} Nf6 {[%emt 0:01:13]} 7. Nf3 {[%emt 0:00:50]} cxd4 {[%emt 0:03:57]} 8. Ncxd4 {[%emt 0:00:33]} a6 {[%emt 0:03:17]} 9. e3 {[%emt 0:01:02]} O-O {[%emt 0:01:05]} 10. Bd3 {[%emt 0:00:46]} Qc7 {[%emt 0:01:04]} 11. Bh4 {[%emt 0:02:39]} Be7 {[%emt 0:00:36]} 12. Nxc6 {[%emt 0:01:06]} bxc6 {[%emt 0:00:49]} 13. Qc2 {[%emt 0:00:27]} h6 {[%emt 0:00:27]} 14. Nd2 {[%emt 0:01:13]} e5 {[%emt 0:02:43]} 15. e4 {[%emt 0:00:21]} Bb7 {[%emt 0:05:35]} ({Black should play} 15... Nh5 $15 16. Bxe7 Qxe7) 16. O-O {[%emt 0:01:02]} Nh5 {[%emt 0:03:24]} 17. Bxe7 {[%emt 0:00:46]} Qxe7 {[%emt 0:00:05]} 18. Rad1 {[%emt 0:01:08]} a5 {[%emt 0:09:44]} (18... f5 $5 {[%cal Rf5e4]} 19. exd5 (19. exf5 e4 $17) 19... cxd5 $11) 19. c4 {[%emt 0:01:13]} (19. Rfe1 $11 {remains equal.}) 19... Nf4 {[%emt 0:00:55]} 20. exd5 $17 {[%emt 0:00:59]} Nxd3 {[%emt 0:02:14]} 21. dxc6 {[%emt 0:00:17]} Bxc6 {[%emt 0:01:05]} 22. Qxd3 {[%emt 0:00:10]} Rad8 {[%emt 0:00:57]} 23. Qc3 {[%emt 0:00:29]} e4 {[%emt 0:03:32]} 24. Nb3 {[%emt 0:00:32]} Qg5 {[%emt 0:03:03]} 25. Qxa5 {[%emt 0:00:45]} Qg4 {[%emt 0:00:17]} 1-0

[Event "URU-ch Semi Final 2020"]
[Site "Montevideo"]
[Date "2020.02.24"]
[Round "6.19"]
[White "Larrea, Daniela"]
[Black "Bon, Charles"]
[Result "1-0"]
[ECO "E98"]
[WhiteElo "1757"]
[BlackElo "1614"]
[Annotator "NA RC"]
[PlyCount "151"]
[EventDate "2020.02.22"]
[EventType "swiss"]
[EventCountry "URU"]
[SourceTitle "playchess.com"]
[Source "ChessBase"]
[SourceQuality "1"]
[TimeControl "5400+30"]

1. d4 {[%emt 0:00:00]} Nf6 {[%emt 0:00:00]} 2. c4 {[%emt 0:00:00]} g6 {[%emt 0:00:10]} 3. Nc3 {[%emt 0:00:00]} Bg7 {[%emt 0:00:08]} 4. e4 {[%emt 0:00:00]} d6 {[%emt 0:00:12]} 5. Nf3 {[%emt 0:00:08]} O-O {[%emt 0:00:23]} 6. Be2 {[%emt 0:00:54]} e5 {[%emt 0:00:26]} 7. O-O {[%emt 0:00:12]} Nc6 {[%emt 0:00:25]} 8. d5 {[%emt 0:00:12]} Ne7 {[%emt 0:00:24]} 9. Ne1 {[%emt 0:00:38]} Nd7 {[%emt 0:01:24]} 10. Be3 {[%emt 0:00:14]} f5 {[%emt 0:00:51]} 11. f3 {[%emt 0:00:05]} f4 {[%emt 0:00:27]} 12. Bf2 {[%emt 0:00:04]} g5 {[%emt 0:01:03]} 13. Nb5 {[%emt 0:00:31]} Nf6 {[%emt 0:04:06]} 14. Nxa7 {[%emt 0:01:33]} Bd7 {[%emt 0:00:23]} 15. Nb5 {[%emt 0:00:35]} Ng6 {[%emt 0:00:30]} 16. b4 {[%emt 0:05:53]} Rf7 {[%emt 0:00:45]} 17. c5 {[%emt 0:00:33]} Bf8 {[%emt 0:00:41]} 18. a4 {[%emt 0:03:51]} h5 {[%emt 0:02:37]} 19. Rc1 {[%emt 0:12:26]} g4 {[%emt 0:05:20]} 20. c6 {[%emt 0:05:19]} bxc6 {[%emt 0:06:18]} 21. dxc6 {[%emt 0:02:24]} Be6 {[%emt 0:05:11]} 22. Nc3 {[%emt 0:08:00]} h4 {[%emt 0:02:23]} 23. fxg4 {[%emt 0:01:59]} d5 {[%emt 0:08:14]} 24. exd5 {[%emt 0:09:37]} Nxd5 25. Nxd5 {[%emt 0:04:20]} Bxd5 {[%emt 0:03:27]} 26. Bc4 {[%emt 0:09:35]} Bxc4 {[%emt 0:08:27]} 27. Qxd8 {[%emt 0:00:05]} Rxd8 {[%emt 0:00:07]} 28. Rxc4 {[%emt 0:00:03]} Rd2 {[%emt 0:01:17]} 29. Nf3 {[%emt 0:03:00]} Re2 {[%emt 0:02:11]} 30. Re1 {[%emt 0:00:17]} Rb2 {[%emt 0:02:12]} 31. Nxe5 {[%emt 0:15:43]} Nxe5 {[%emt 0:03:52]} 32. Rxe5 {[%emt 0:00:04]} h3 {[%emt 0:01:36]} 33. gxh3 {[%emt 0:02:14]} Bd6 {[%emt 0:02:01]} 34. Re8+ {[%emt 0:03:12]} Kh7 {[%emt 0:00:41]} 35. Bd4 {[%emt 0:02:27]} Rb1+ {[%emt 0:01:09]} 36. Kf2 {[%emt 0:00:36]} f3 {[%emt 0:01:21]} 37. Re1 {[%emt 0:01:42]} Rxb4 {[%emt 0:02:58]} 38. Rxb4 {[%emt 0:00:25]} Bxb4 {[%emt 0:00:07]} 39. Re3 {[%emt 0:00:59]} Rf4 {[%emt 0:02:40]} 40. Be5 {[%emt 0:00:19]} Rc4 {[%emt 0:01:27]} 41. Rxf3 {[%emt 0:00:38]} Rxc6 {[%emt 0:00:33]} 42. Rf7+ {[%emt 0:00:38]} Kg6 {[%emt 0:00:34]} 43. Rxc7 {[%emt 0:01:01]} Ra6 {[%emt 0:03:57]} 44. Rg7+ {[%emt 0:00:19]} Kh6 {[%emt 0:00:10]} 45. g5+ {[%emt 0:00:08]} Kh5 {[%emt 0:00:16]} 46. Rh7+ {[%emt 0:00:04]} Kxg5 {[%emt 0:00:19]} 47. h4+ {[%emt 0:00:30]} Kg4 {[%emt 0:00:30]} 48. Bg3 {[%emt 0:04:02]} Bc5+ {[%emt 0:03:20]} 49. Ke2 {[%emt 0:00:52]} Rxa4 {[%emt 0:01:11]} 50. Rg7+ {[%emt 0:00:55]} Kh3 {[%emt 0:03:11]} 51. h5 {[%emt 0:00:18]} Ra6 {[%emt 0:01:42]} 52. Bf4 {[%emt 0:00:30]} Bf8 {[%emt 0:02:57]} 53. Rg8 {[%emt 0:01:13]} Ra2+ {[%emt 0:02:40]} 54. Kf3 {[%emt 0:00:21]} Ra3+ {[%emt 0:00:54]} 55. Ke4 {[%emt 0:00:32]} Ra4+ {[%emt 0:03:07]} 56. Kf5 {[%emt 0:01:20]} Ra5+ {[%emt 0:00:29]} 57. Kg6 {[%emt 0:00:49]} Ra6+ {[%emt 0:01:25]} 58. Kh7 {[%emt 0:00:56]} Ra7+ {[%emt 0:00:46]} 59. Kh8 {[%emt 0:00:14]} Bc5 {[%emt 0:02:02]} 60. Be5 {[%emt 0:00:34]} Be3 {[%emt 0:02:26]} 61. Rg3+ {[%emt 0:00:30]} Kh4 {[%emt 0:01:04]} 62. Rxe3 {[%emt 0:00:09]} Kxh5 {[%emt 0:00:47]} 63. Rh3+ {[%emt 0:01:39]} Kg4 {[%emt 0:01:21]} 64. Rg3+ {[%emt 0:00:12]} Kf5 {[%emt 0:00:20]} 65. Bc3 {[%emt 0:01:17]} Ra8+ {[%emt 0:00:37]} 66. Kh7 {[%emt 0:00:07]} Ra7+ {[%emt 0:00:35]} 67. Kh6 {[%emt 0:00:23]} Ra6+ {[%emt 0:00:38]} 68. Kh5 Ra7 {[%emt 0:00:28]} 69. Rg5+ {[%emt 0:01:06]} Ke4 {[%emt 0:00:51]} 70. h4 {[%emt 0:00:45]} Rh7+ 71. Kg4 {[%emt 0:00:10]} Rc7 {[%emt 0:01:39]} 72. Bg7 {[%emt 0:01:04]} Kd3 {[%emt 0:00:43]} 73. Kf5 {[%emt 0:00:16]} Rc5+ {[%emt 0:00:51]} 74. Kg6 {[%emt 0:00:06]} Rc6+ {[%emt 0:00:49]} 75. Bf6 {[%emt 0:00:19]} Rc1 {[%emt 0:00:18]} 76. h5 {[%emt 0:00:06]} 1-0

[Event "URU-ch Semi Final 2020"]
[Site "Montevideo"]
[Date "2020.02.24"]
[Round "6.20"]
[White "Blanco, Rudemar Ernesto"]
[Black "Nakle, Gonzalo"]
[Result "0-1"]
[ECO "A40"]
[WhiteElo "1470"]
[BlackElo "1675"]
[Annotator "NA RC"]
[PlyCount "54"]
[EventDate "2020.02.22"]
[EventType "swiss"]
[EventCountry "URU"]
[SourceTitle "playchess.com"]
[Source "ChessBase"]
[SourceQuality "1"]
[TimeControl "5400+30"]

1. d4 {[%emt 0:00:00]} g6 {[%emt 0:01:12]} 2. Bf4 {[%emt 0:02:39]} Bg7 {[%emt 0:00:11]} 3. Nf3 {[%emt 0:00:29]} Nf6 {[%emt 0:00:08]} 4. Nbd2 {[%emt 0:01:14]} d5 {[%emt 0:00:13]} 5. h3 {[%emt 0:00:31]} c6 {[%emt 0:00:13]} 6. c3 {[%emt 0:00:57]} O-O {[%emt 0:00:40]} 7. e3 {[%emt 0:00:34]} Nbd7 {[%emt 0:00:09]} 8. Be2 {[%emt 0:00:18]} Ne8 {[%emt 0:00:06]} 9. e4 {[%emt 0:03:43]} dxe4 {[%emt 0:00:14]} 10. Nxe4 {[%emt 0:00:14]} Ndf6 {[%emt 0:01:02]} 11. Nxf6+ {[%emt 0:00:58]} Nxf6 {[%emt 0:00:07]} 12. O-O {[%emt 0:02:46]} Be6 {[%emt 0:00:23]} 13. Ng5 {[%emt 0:05:33]} Bd5 {[%emt 0:03:51]} 14. Bh2 {[%emt 0:01:40]} h6 {[%emt 0:00:17]} 15. Nf3 {[%emt 0:00:11]} Qb6 {[%emt 0:00:16]} 16. b3 {[%emt 0:04:44]} Rad8 {[%emt 0:00:09]} 17. Qc2 {[%emt 0:02:11]} c5 {[%emt 0:00:43]} 18. Rad1 {[%emt 0:04:02]} Be4 {[%emt 0:01:02]} 19. Bd3 {[%emt 0:02:05]} Bxf3 {[%emt 0:00:05]} 20. gxf3 {[%emt 0:00:06]} cxd4 {[%emt 0:00:04]} 21. c4 {[%emt 0:03:01]} Qe6 {[%emt 0:00:13]} 22. Kh1 {[%emt 0:00:53]} Qxh3 {[%emt 0:00:06]} 23. Rg1 {[%emt 0:00:30]} Qxf3+ {[%emt 0:00:10]} 24. Rg2 {[%emt 0:00:04]} Ng4 {[%emt 0:00:23]} 25. Bxg6 {[%emt 0:00:23]} fxg6 {[%emt 0:00:05]} 26. Qxg6 {[%emt 0:00:12]} Nxf2+ {[%emt 0:00:16]} 27. Kg1 {[%emt 0:00:18]} Qxd1# {[%emt 0:00:06]} 0-1

[Event "URU-ch Semi Final 2020"]
[Site "Montevideo"]
[Date "2020.02.24"]
[Round "6.21"]
[White "Cayetano, Juan"]
[Black "Rey, Fernando"]
[Result "1/2-1/2"]
[ECO "C01"]
[WhiteElo "1543"]
[BlackElo "1640"]
[Annotator "NA RC"]
[PlyCount "36"]
[EventDate "2020.02.22"]
[EventType "swiss"]
[EventCountry "URU"]
[SourceTitle "playchess.com"]
[Source "ChessBase"]
[SourceQuality "1"]
[TimeControl "5400+30"]

1. e4 {[%emt 0:00:00]} e6 {[%emt 0:00:00]} 2. d4 {[%emt 0:00:00]} d5 {[%emt 0:00:00]} 3. exd5 {[%emt 0:00:00]} exd5 {[%emt 0:00:00]} 4. Bd3 {[%emt 0:00:00]} Bd6 {[%emt 0:00:00]} 5. Nf3 {[%emt 0:00:10]} Nc6 {[%emt 0:00:06]} 6. c3 {[%emt 0:00:13]} Nge7 {[%emt 0:00:06]} 7. Qc2 {[%emt 0:00:21]} Bg4 {[%emt 0:00:07]} 8. Nbd2 {[%emt 0:00:45]} Qd7 {[%emt 0:00:53]} 9. O-O {[%emt 0:00:47]} Bf5 {[%emt 0:19:46]} 10. a4 {[%emt 0:01:54]} O-O {[%emt 0:00:43]} 11. b3 {[%emt 0:00:28]} Bxd3 {[%emt 0:02:53]} 12. Qxd3 {[%emt 0:00:10]} a6 {[%emt 0:01:32]} 13. Ba3 {[%emt 0:00:28]} Bxa3 {[%emt 0:00:53]} 14. Rxa3 {[%emt 0:00:08]} f6 {[%emt 0:03:33]} 15. Raa1 {[%emt 0:00:25]} Qf5 {[%emt 0:01:16]} 16. Qxf5 {[%emt 0:00:44]} Nxf5 {[%emt 0:00:17]} 17. Rfe1 {[%emt 0:00:11]} Rae8 {[%emt 0:00:12]} 18. b4 {[%emt 0:00:22]} Nb8 {[%emt 0:00:53]} 1/2-1/2